{"text_format":"3","workbook":"xlsx","n_sheets":1,"sheets":["Λίστα αποθεμάτων"],"not_rendered":{"defined_names":3},"read":"whole","date_system":"1900"}

{"sheet":"Λίστα αποθεμάτων","index":0,"n_rows":28,"n_cols":12,"rows_kept":28,"merged":[[0,2,0,4],[0,5,0,6]]}
[null,null,"Λίστα αποθεμάτων",null,null,"Επισήμανση ειδών για νέα παραγγελία;",null,"Ναι"]
[]
[null,"Είδη με σημαία για νέα παραγγελία","Κωδικός αποθέματος","Όνομα","Περιγραφή","Τιμή μονάδας","Ποσότητα σε απόθεμα","Αξία αποθέματος","Επίπεδο νέας παραγγελίας","Χρόνος νέας παραγγελίας σε ημέρες","Ποσότητα νέας παραγγελίας","Καταργημένο;"]
[null,{"$f":"IFERROR((ΛίσταΑποθεμάτων[[#This Row],[Ποσότητα σε απόθεμα]]<=ΛίσταΑποθεμάτων[[#This Row],[Επίπεδο νέας παραγγελίας]])*(ΛίσταΑποθεμάτων[[#This Row],[Καταργημένο;]]=\"\")*ΕπισήμανσηΑξίας,0)","v":1},"ΑΠ0001","Είδος 1","Περιγρ. 1",{"v":51,"d":"51.00 €"},25,{"$f":"ΛίσταΑποθεμάτων[[#This Row],[Τιμή μονάδας]]*ΛίσταΑποθεμάτων[[#This Row],[Ποσότητα σε απόθεμα]]","v":{"v":1275,"d":"1,275.00 €"}},29,13,50,""]
[null,{"$f":"IFERROR((ΛίσταΑποθεμάτων[[#This Row],[Ποσότητα σε απόθεμα]]<=ΛίσταΑποθεμάτων[[#This Row],[Επίπεδο νέας παραγγελίας]])*(ΛίσταΑποθεμάτων[[#This Row],[Καταργημένο;]]=\"\")*ΕπισήμανσηΑξίας,0)","v":1},"ΑΠ0002","Είδος 2","Περιγρ. 2",{"v":93,"d":"93.00 €"},132,{"$f":"ΛίσταΑποθεμάτων[[#This Row],[Τιμή μονάδας]]*ΛίσταΑποθεμάτων[[#This Row],[Ποσότητα σε απόθεμα]]","v":{"v":12276,"d":"12,276.00 €"}},231,4,50,""]
[null,{"$f":"IFERROR((ΛίσταΑποθεμάτων[[#This Row],[Ποσότητα σε απόθεμα]]<=ΛίσταΑποθεμάτων[[#This Row],[Επίπεδο νέας παραγγελίας]])*(ΛίσταΑποθεμάτων[[#This Row],[Καταργημένο;]]=\"\")*ΕπισήμανσηΑξίας,0)","v":0},"ΑΠ0003","Είδος 3","Περιγρ. 3",{"v":57,"d":"57.00 €"},151,{"$f":"ΛίσταΑποθεμάτων[[#This Row],[Τιμή μονάδας]]*ΛίσταΑποθεμάτων[[#This Row],[Ποσότητα σε απόθεμα]]","v":{"v":8607,"d":"8,607.00 €"}},114,11,150,""]
[null,{"$f":"IFERROR((ΛίσταΑποθεμάτων[[#This Row],[Ποσότητα σε απόθεμα]]<=ΛίσταΑποθεμάτων[[#This Row],[Επίπεδο νέας παραγγελίας]])*(ΛίσταΑποθεμάτων[[#This Row],[Καταργημένο;]]=\"\")*ΕπισήμανσηΑξίας,0)","v":0},"ΑΠ0004","Είδος 4","Περιγρ. 4",{"v":19,"d":"19.00 €"},186,{"$f":"ΛίσταΑποθεμάτων[[#This Row],[Τιμή μονάδας]]*ΛίσταΑποθεμάτων[[#This Row],[Ποσότητα σε απόθεμα]]","v":{"v":3534,"d":"3,534.00 €"}},158,6,50,""]
[null,{"$f":"IFERROR((ΛίσταΑποθεμάτων[[#This Row],[Ποσότητα σε απόθεμα]]<=ΛίσταΑποθεμάτων[[#This Row],[Επίπεδο νέας παραγγελίας]])*(ΛίσταΑποθεμάτων[[#This Row],[Καταργημένο;]]=\"\")*ΕπισήμανσηΑξίας,0)","v":0},"ΑΠ0005","Είδος 5","Περιγρ. 5",{"v":75,"d":"75.00 €"},62,{"$f":"ΛίσταΑποθεμάτων[[#This Row],[Τιμή μονάδας]]*ΛίσταΑποθεμάτων[[#This Row],[Ποσότητα σε απόθεμα]]","v":{"v":4650,"d":"4,650.00 €"}},39,12,50,""]
[null,{"$f":"IFERROR((ΛίσταΑποθεμάτων[[#This Row],[Ποσότητα σε απόθεμα]]<=ΛίσταΑποθεμάτων[[#This Row],[Επίπεδο νέας παραγγελίας]])*(ΛίσταΑποθεμάτων[[#This Row],[Καταργημένο;]]=\"\")*ΕπισήμανσηΑξίας,0)","v":1},"ΑΠ0006","Είδος 6","Περιγρ. 6",{"v":11,"d":"11.00 €"},5,{"$f":"ΛίσταΑποθεμάτων[[#This Row],[Τιμή μονάδας]]*ΛίσταΑποθεμάτων[[#This Row],[Ποσότητα σε απόθεμα]]","v":{"v":55,"d":"55.00 €"}},9,13,150,""]
[null,{"$f":"IFERROR((ΛίσταΑποθεμάτων[[#This Row],[Ποσότητα σε απόθεμα]]<=ΛίσταΑποθεμάτων[[#This Row],[Επίπεδο νέας παραγγελίας]])*(ΛίσταΑποθεμάτων[[#This Row],[Καταργημένο;]]=\"\")*ΕπισήμανσηΑξίας,0)","v":0},"ΑΠ0007","Είδος 7","Περιγρ. 7",{"v":56,"d":"56.00 €"},58,{"$f":"ΛίσταΑποθεμάτων[[#This Row],[Τιμή μονάδας]]*ΛίσταΑποθεμάτων[[#This Row],[Ποσότητα σε απόθεμα]]","v":{"v":3248,"d":"3,248.00 €"}},109,7,100,"ναι"]
[null,{"$f":"IFERROR((ΛίσταΑποθεμάτων[[#This Row],[Ποσότητα σε απόθεμα]]<=ΛίσταΑποθεμάτων[[#This Row],[Επίπεδο νέας παραγγελίας]])*(ΛίσταΑποθεμάτων[[#This Row],[Καταργημένο;]]=\"\")*ΕπισήμανσηΑξίας,0)","v":1},"ΑΠ0008","Είδος 8","Περιγρ. 8",{"v":38,"d":"38.00 €"},101,{"$f":"ΛίσταΑποθεμάτων[[#This Row],[Τιμή μονάδας]]*ΛίσταΑποθεμάτων[[#This Row],[Ποσότητα σε απόθεμα]]","v":{"v":3838,"d":"3,838.00 €"}},162,3,100,""]
[null,{"$f":"IFERROR((ΛίσταΑποθεμάτων[[#This Row],[Ποσότητα σε απόθεμα]]<=ΛίσταΑποθεμάτων[[#This Row],[Επίπεδο νέας παραγγελίας]])*(ΛίσταΑποθεμάτων[[#This Row],[Καταργημένο;]]=\"\")*ΕπισήμανσηΑξίας,0)","v":0},"ΑΠ0009","Είδος 9","Περιγρ. 9",{"v":59,"d":"59.00 €"},122,{"$f":"ΛίσταΑποθεμάτων[[#This Row],[Τιμή μονάδας]]*ΛίσταΑποθεμάτων[[#This Row],[Ποσότητα σε απόθεμα]]","v":{"v":7198,"d":"7,198.00 €"}},82,3,150,""]
[null,{"$f":"IFERROR((ΛίσταΑποθεμάτων[[#This Row],[Ποσότητα σε απόθεμα]]<=ΛίσταΑποθεμάτων[[#This Row],[Επίπεδο νέας παραγγελίας]])*(ΛίσταΑποθεμάτων[[#This Row],[Καταργημένο;]]=\"\")*ΕπισήμανσηΑξίας,0)","v":1},"ΑΠ0010","Είδος 10","Περιγρ. 10",{"v":50,"d":"50.00 €"},175,{"$f":"ΛίσταΑποθεμάτων[[#This Row],[Τιμή μονάδας]]*ΛίσταΑποθεμάτων[[#This Row],[Ποσότητα σε απόθεμα]]","v":{"v":8750,"d":"8,750.00 €"}},283,8,150,""]
[null,{"$f":"IFERROR((ΛίσταΑποθεμάτων[[#This Row],[Ποσότητα σε απόθεμα]]<=ΛίσταΑποθεμάτων[[#This Row],[Επίπεδο νέας παραγγελίας]])*(ΛίσταΑποθεμάτων[[#This Row],[Καταργημένο;]]=\"\")*ΕπισήμανσηΑξίας,0)","v":1},"ΑΠ0011","Είδος 11","Περιγρ. 11",{"v":59,"d":"59.00 €"},176,{"$f":"ΛίσταΑποθεμάτων[[#This Row],[Τιμή μονάδας]]*ΛίσταΑποθεμάτων[[#This Row],[Ποσότητα σε απόθεμα]]","v":{"v":10384,"d":"10,384.00 €"}},229,1,100,""]
[null,{"$f":"IFERROR((ΛίσταΑποθεμάτων[[#This Row],[Ποσότητα σε απόθεμα]]<=ΛίσταΑποθεμάτων[[#This Row],[Επίπεδο νέας παραγγελίας]])*(ΛίσταΑποθεμάτων[[#This Row],[Καταργημένο;]]=\"\")*ΕπισήμανσηΑξίας,0)","v":1},"ΑΠ0012","Είδος 12","Περιγρ. 12",{"v":18,"d":"18.00 €"},22,{"$f":"ΛίσταΑποθεμάτων[[#This Row],[Τιμή μονάδας]]*ΛίσταΑποθεμάτων[[#This Row],[Ποσότητα σε απόθεμα]]","v":{"v":396,"d":"396.00 €"}},36,12,50,""]
[null,{"$f":"IFERROR((ΛίσταΑποθεμάτων[[#This Row],[Ποσότητα σε απόθεμα]]<=ΛίσταΑποθεμάτων[[#This Row],[Επίπεδο νέας παραγγελίας]])*(ΛίσταΑποθεμάτων[[#This Row],[Καταργημένο;]]=\"\")*ΕπισήμανσηΑξίας,0)","v":1},"ΑΠ0013","Είδος 13","Περιγρ. 13",{"v":26,"d":"26.00 €"},72,{"$f":"ΛίσταΑποθεμάτων[[#This Row],[Τιμή μονάδας]]*ΛίσταΑποθεμάτων[[#This Row],[Ποσότητα σε απόθεμα]]","v":{"v":1872,"d":"1,872.00 €"}},102,9,100,""]
[null,{"$f":"IFERROR((ΛίσταΑποθεμάτων[[#This Row],[Ποσότητα σε απόθεμα]]<=ΛίσταΑποθεμάτων[[#This Row],[Επίπεδο νέας παραγγελίας]])*(ΛίσταΑποθεμάτων[[#This Row],[Καταργημένο;]]=\"\")*ΕπισήμανσηΑξίας,0)","v":1},"ΑΠ0014","Είδος 14","Περιγρ. 14",{"v":42,"d":"42.00 €"},62,{"$f":"ΛίσταΑποθεμάτων[[#This Row],[Τιμή μονάδας]]*ΛίσταΑποθεμάτων[[#This Row],[Ποσότητα σε απόθεμα]]","v":{"v":2604,"d":"2,604.00 €"}},83,2,100,""]
[null,{"$f":"IFERROR((ΛίσταΑποθεμάτων[[#This Row],[Ποσότητα σε απόθεμα]]<=ΛίσταΑποθεμάτων[[#This Row],[Επίπεδο νέας παραγγελίας]])*(ΛίσταΑποθεμάτων[[#This Row],[Καταργημένο;]]=\"\")*ΕπισήμανσηΑξίας,0)","v":0},"ΑΠ0015","Είδος 15","Περιγρ. 15",{"v":32,"d":"32.00 €"},46,{"$f":"ΛίσταΑποθεμάτων[[#This Row],[Τιμή μονάδας]]*ΛίσταΑποθεμάτων[[#This Row],[Ποσότητα σε απόθεμα]]","v":{"v":1472,"d":"1,472.00 €"}},23,15,50,""]
[null,{"$f":"IFERROR((ΛίσταΑποθεμάτων[[#This Row],[Ποσότητα σε απόθεμα]]<=ΛίσταΑποθεμάτων[[#This Row],[Επίπεδο νέας παραγγελίας]])*(ΛίσταΑποθεμάτων[[#This Row],[Καταργημένο;]]=\"\")*ΕπισήμανσηΑξίας,0)","v":1},"ΑΠ0016","Είδος 16","Περιγρ. 16",{"v":90,"d":"90.00 €"},96,{"$f":"ΛίσταΑποθεμάτων[[#This Row],[Τιμή μονάδας]]*ΛίσταΑποθεμάτων[[#This Row],[Ποσότητα σε απόθεμα]]","v":{"v":8640,"d":"8,640.00 €"}},180,3,50,""]
[null,{"$f":"IFERROR((ΛίσταΑποθεμάτων[[#This Row],[Ποσότητα σε απόθεμα]]<=ΛίσταΑποθεμάτων[[#This Row],[Επίπεδο νέας παραγγελίας]])*(ΛίσταΑποθεμάτων[[#This Row],[Καταργημένο;]]=\"\")*ΕπισήμανσηΑξίας,0)","v":0},"ΑΠ0017","Είδος 17","Περιγρ. 17",{"v":97,"d":"97.00 €"},57,{"$f":"ΛίσταΑποθεμάτων[[#This Row],[Τιμή μονάδας]]*ΛίσταΑποθεμάτων[[#This Row],[Ποσότητα σε απόθεμα]]","v":{"v":5529,"d":"5,529.00 €"}},98,12,50,"Ναι"]
[null,{"$f":"IFERROR((ΛίσταΑποθεμάτων[[#This Row],[Ποσότητα σε απόθεμα]]<=ΛίσταΑποθεμάτων[[#This Row],[Επίπεδο νέας παραγγελίας]])*(ΛίσταΑποθεμάτων[[#This Row],[Καταργημένο;]]=\"\")*ΕπισήμανσηΑξίας,0)","v":1},"ΑΠ0018","Είδος 18","Περιγρ. 18",{"v":12,"d":"12.00 €"},6,{"$f":"ΛίσταΑποθεμάτων[[#This Row],[Τιμή μονάδας]]*ΛίσταΑποθεμάτων[[#This Row],[Ποσότητα σε απόθεμα]]","v":{"v":72,"d":"72.00 €"}},7,13,50,""]
[null,{"$f":"IFERROR((ΛίσταΑποθεμάτων[[#This Row],[Ποσότητα σε απόθεμα]]<=ΛίσταΑποθεμάτων[[#This Row],[Επίπεδο νέας παραγγελίας]])*(ΛίσταΑποθεμάτων[[#This Row],[Καταργημένο;]]=\"\")*ΕπισήμανσηΑξίας,0)","v":1},"ΑΠ0019","Είδος 19","Περιγρ. 19",{"v":82,"d":"82.00 €"},143,{"$f":"ΛίσταΑποθεμάτων[[#This Row],[Τιμή μονάδας]]*ΛίσταΑποθεμάτων[[#This Row],[Ποσότητα σε απόθεμα]]","v":{"v":11726,"d":"11,726.00 €"}},164,12,150]
[null,{"$f":"IFERROR((ΛίσταΑποθεμάτων[[#This Row],[Ποσότητα σε απόθεμα]]<=ΛίσταΑποθεμάτων[[#This Row],[Επίπεδο νέας παραγγελίας]])*(ΛίσταΑποθεμάτων[[#This Row],[Καταργημένο;]]=\"\")*ΕπισήμανσηΑξίας,0)","v":0},"ΑΠ0020","Είδος 20","Περιγρ. 20",{"v":16,"d":"16.00 €"},124,{"$f":"ΛίσταΑποθεμάτων[[#This Row],[Τιμή μονάδας]]*ΛίσταΑποθεμάτων[[#This Row],[Ποσότητα σε απόθεμα]]","v":{"v":1984,"d":"1,984.00 €"}},113,14,50,""]
[null,{"$f":"IFERROR((ΛίσταΑποθεμάτων[[#This Row],[Ποσότητα σε απόθεμα]]<=ΛίσταΑποθεμάτων[[#This Row],[Επίπεδο νέας παραγγελίας]])*(ΛίσταΑποθεμάτων[[#This Row],[Καταργημένο;]]=\"\")*ΕπισήμανσηΑξίας,0)","v":0},"ΑΠ0021","Είδος 21","Περιγρ. 21",{"v":19,"d":"19.00 €"},112,{"$f":"ΛίσταΑποθεμάτων[[#This Row],[Τιμή μονάδας]]*ΛίσταΑποθεμάτων[[#This Row],[Ποσότητα σε απόθεμα]]","v":{"v":2128,"d":"2,128.00 €"}},75,11,50,""]
[null,{"$f":"IFERROR((ΛίσταΑποθεμάτων[[#This Row],[Ποσότητα σε απόθεμα]]<=ΛίσταΑποθεμάτων[[#This Row],[Επίπεδο νέας παραγγελίας]])*(ΛίσταΑποθεμάτων[[#This Row],[Καταργημένο;]]=\"\")*ΕπισήμανσηΑξίας,0)","v":0},"ΑΠ0022","Είδος 22","Περιγρ. 22",{"v":24,"d":"24.00 €"},182,{"$f":"ΛίσταΑποθεμάτων[[#This Row],[Τιμή μονάδας]]*ΛίσταΑποθεμάτων[[#This Row],[Ποσότητα σε απόθεμα]]","v":{"v":4368,"d":"4,368.00 €"}},132,15,150,""]
[null,{"$f":"IFERROR((ΛίσταΑποθεμάτων[[#This Row],[Ποσότητα σε απόθεμα]]<=ΛίσταΑποθεμάτων[[#This Row],[Επίπεδο νέας παραγγελίας]])*(ΛίσταΑποθεμάτων[[#This Row],[Καταργημένο;]]=\"\")*ΕπισήμανσηΑξίας,0)","v":0},"ΑΠ0023","Είδος 23","Περιγρ. 23",{"v":29,"d":"29.00 €"},106,{"$f":"ΛίσταΑποθεμάτων[[#This Row],[Τιμή μονάδας]]*ΛίσταΑποθεμάτων[[#This Row],[Ποσότητα σε απόθεμα]]","v":{"v":3074,"d":"3,074.00 €"}},142,1,150,"Ναι"]
[null,{"$f":"IFERROR((ΛίσταΑποθεμάτων[[#This Row],[Ποσότητα σε απόθεμα]]<=ΛίσταΑποθεμάτων[[#This Row],[Επίπεδο νέας παραγγελίας]])*(ΛίσταΑποθεμάτων[[#This Row],[Καταργημένο;]]=\"\")*ΕπισήμανσηΑξίας,0)","v":0},"ΑΠ0024","Είδος 24","Περιγρ. 24",{"v":75,"d":"75.00 €"},173,{"$f":"ΛίσταΑποθεμάτων[[#This Row],[Τιμή μονάδας]]*ΛίσταΑποθεμάτων[[#This Row],[Ποσότητα σε απόθεμα]]","v":{"v":12975,"d":"12,975.00 €"}},127,9,100,""]
[null,{"$f":"IFERROR((ΛίσταΑποθεμάτων[[#This Row],[Ποσότητα σε απόθεμα]]<=ΛίσταΑποθεμάτων[[#This Row],[Επίπεδο νέας παραγγελίας]])*(ΛίσταΑποθεμάτων[[#This Row],[Καταργημένο;]]=\"\")*ΕπισήμανσηΑξίας,0)","v":0},"ΑΠ0025","Είδος 25","Περιγρ. 25",{"v":14,"d":"14.00 €"},28,{"$f":"ΛίσταΑποθεμάτων[[#This Row],[Τιμή μονάδας]]*ΛίσταΑποθεμάτων[[#This Row],[Ποσότητα σε απόθεμα]]","v":{"v":392,"d":"392.00 €"}},21,8,50,""]